fUSD/lending_fUSD_20241207
["ID","MTS","AMOUNT","RATE_DAILY","PERIOD"]
[344540813,1733538651656,-500.0,0.00010954,2]
[344540814,1733538651665,-500.0,0.00010954,2]
[344540815,1733538651674,-500.0,0.00010954,2]
[344540816,1733538651684,-500.0,0.00010954,2]
[344540817,1733538651693,-608.53,0.00010954,2]
[344540818,1733538651722,-500.0,0.00010954,2]
[344540819,1733538651732,-267.54438274,0.00010954,2]
[344540820,1733538651741,-500.0,0.00010954,2]
[344540821,1733538651751,-500.0,0.00010954,2]
[344540822,1733538651761,-500.0,0.00010954,2]
[344540823,1733538651774,-500.0,0.00010954,2]
[344540824,1733538651785,-500.0,0.00010954,2]
[344540825,1733538651796,-500.0,0.00010954,2]
[344540826,1733538651805,-500.0,0.00010954,2]
[344540827,1733538651814,-500.0,0.00010954,2]
[344540828,1733538651823,-500.0,0.00010954,2]
[344540829,1733538651832,-358.59062548,0.00010954,2]
[344540830,1733538651841,-577.01170424,0.00010954,2]
[344540831,1733538651850,-551.5907429,0.00010954,2]
[344540832,1733538651859,-500.0,0.00010954,2]
[344540833,1733538651869,-500.0,0.00010954,2]
[344540834,1733538651878,-315.05910366,0.00010954,2]
[344540835,1733538651888,-500.0,0.00010954,2]
[344540836,1733538651897,-346.37473766,0.00010954,2]
[344540837,1733538651906,-518.65,0.00010954,2]
[344540838,1733538651915,-500.0,0.00010954,2]
[344540839,1733538651924,-500.0,0.00010954,2]
[344540840,1733538651934,-200.0,0.00010959,2]
[344540841,1733538651946,-150.0,0.00010959,2]
[344540842,1733538651955,-3711.79880328,0.0001099,2]
[344540843,1733538651965,-150.0,0.00011044,2]
[344540844,1733538651974,-150.0,0.00011049,2]
[344540845,1733538651983,-25948.11328556,0.00011097,2]
[344540846,1733538651992,-150.0,0.00011098,2]
[344540847,1733538652001,-255.0,0.00011102,2]
[344540848,1733538652010,-3711.79880328,0.00011127,2]
[344540849,1733538652019,-150.0,0.00011141,2]
[344540850,1733538652028,-500.55062558,0.00011221,2]
[344540851,1733538652037,-500.0,0.00011221,2]
[344540852,1733538652046,-500.6387131,0.00011221,2]
[344540853,1733538652056,-269.16012338,0.00011221,2]
[344540854,1733538652065,-502.01318492,0.00011226,2]
[344540855,1733538652074,-920.34,0.00011226,2]
[344540856,1733538652083,-500.0,0.00011226,2]
[344540857,1733538652092,-500.0,0.00011226,2]
[344540858,1733538652101,-500.0,0.00011226,2]
[344540859,1733538652110,-633.2920736,0.00011226,2]
[344540860,1733538652119,-500.0,0.00011226,2]
[344540861,1733538652128,-500.0,0.00011226,2]
[344540862,1733538652137,-500.0,0.00011226,2]
[344540863,1733538652146,-500.0,0.00011226,2]
[344540864,1733538652155,-500.0,0.00011226,2]
[344540865,1733538652164,-500.0,0.00011226,2]
[344540866,1733538652174,-500.0,0.00011226,2]
[344540867,1733538652182,-500.0,0.00011226,2]
[344540868,1733538652192,-500.0,0.00011226,2]
[344540869,1733538652204,-500.0,0.00011226,2]
[344540870,1733538652213,-500.0,0.00011226,2]
[344540871,1733538652222,-535.83,0.00011226,2]
[344540872,1733538652231,-165.27542593,0.00011226,2]
[344540873,1733538652241,-500.0,0.00011226,2]
[344540874,1733538652250,-500.0,0.00011226,2]
[344540875,1733538652259,-500.0,0.00011226,2]
[344540876,1733538652268,-500.0,0.00011226,2]
[344540877,1733538652277,-500.0,0.00011226,2]
[344540878,1733538652286,-500.0,0.00011226,2]
[344540879,1733538652295,-500.0,0.00011226,2]
[344540880,1733538652304,-500.0,0.00011226,2]
[344540881,1733538652313,-500.0,0.00011226,2]
[344540882,1733538652322,-500.0,0.00011226,2]
[344540883,1733538652331,-500.0,0.00011226,2]
[344540884,1733538652340,-500.0,0.00011226,2]
[344540885,1733538652350,-500.0,0.00011226,2]
[344540886,1733538652359,-698.17,0.00011226,2]
[344540887,1733538652368,-500.0,0.00011226,2]
[344540888,1733538652377,-500.0,0.00011226,2]
[344540889,1733538652386,-500.0,0.00011226,2]
[344540890,1733538652396,-500.0,0.00011226,2]
[344540891,1733538652405,-500.0,0.00011226,2]
[344540892,1733538652414,-500.0,0.00011226,2]
[344540893,1733538652423,-500.0,0.00011226,2]
[344540894,1733538652433,-1200.0,0.00011226,2]
[344540895,1733538652442,-500.0,0.00011226,2]
[344540896,1733538652456,-500.0,0.00011226,2]
[344540897,1733538652465,-500.0,0.00011226,2]
[344540898,1733538652475,-500.0,0.00011226,2]
[344540899,1733538652484,-500.0,0.00011226,2]
[344540900,1733538652494,-500.0,0.00011226,2]
[344540901,1733538652503,-500.0,0.00011226,2]
[344540902,1733538652513,-500.0,0.00011226,2]
[344540903,1733538652522,-500.0,0.00011226,2]
[344540904,1733538652531,-710.18,0.00011226,2]
[344540905,1733538652540,-500.0,0.00011226,2]
[344540906,1733538652550,-500.0,0.00011226,2]
[344540907,1733538652559,-500.0,0.00011226,2]
[344540908,1733538652568,-570.36599407,0.00011226,2]
[344540909,1733538652577,-500.0,0.00011226,2]
[344540910,1733538652586,-500.0,0.00011226,2]
[344540911,1733538652595,-500.0,0.00011226,2]
[344540912,1733538652603,-500.0,0.00011226,2]
[344540913,1733538652612,-500.0,0.00011226,2]
[344540914,1733538652625,-500.0,0.00011226,2]
[344540915,1733538652634,-500.0,0.00011226,2]
[344540916,1733538652643,-500.0,0.00011226,2]
[344540917,1733538652653,-500.0,0.00011226,2]
[344540918,1733538652662,-500.0,0.00011226,2]
[344540919,1733538652671,-500.0,0.00011226,2]
[344540920,1733538652680,-500.0,0.00011226,2]
[344540921,1733538652689,-1581.6,0.00011226,2]
[344540922,1733538652702,-500.0,0.00011226,2]
[344540923,1733538652713,-500.0,0.00011226,2]
[344540924,1733538652722,-948.74,0.00011226,2]
[344540925,1733538652731,-500.0,0.00011226,2]
[344540926,1733538652740,-614.09,0.00011226,2]
[344540927,1733538652751,-1046.74,0.00011226,2]
[344540928,1733538652760,-506.44,0.00011226,2]
[344540929,1733538652769,-761.38,0.00011226,2]
[344540930,1733538652779,-849.57,0.00011226,2]
[344540931,1733538652789,-500.0,0.00011226,2]
[344540932,1733538652798,-500.0,0.00011226,2]
[344540933,1733538652807,-566.69,0.00011226,2]
[344540934,1733538652816,-500.0,0.00011226,2]
[344540935,1733538652825,-1186.12,0.00011226,2]
[344540936,1733538652834,-500.0,0.00011226,2]
[344540937,1733538652843,-500.0,0.00011226,2]
[344540938,1733538652853,-545.01,0.00011226,2]
[344540939,1733538652862,-500.0,0.00011226,2]
[344540940,1733538652871,-500.0,0.00011226,2]
[344540941,1733538652881,-500.0,0.00011226,2]
[344540942,1733538652890,-500.0,0.00011226,2]
[344540943,1733538652899,-952.31,0.00011226,2]
[344540944,1733538652908,-500.0,0.00011226,2]
[344540945,1733538652918,-500.0,0.00011226,2]
[344540946,1733538652927,-589.84,0.00011226,2]
[344540947,1733538652936,-529.52,0.00011226,2]
[344540948,1733538652945,-606.23,0.00011226,2]
[344540949,1733538652957,-500.0,0.00011226,2]
[344540950,1733538652966,-500.0,0.00011226,2]
[344540951,1733538652975,-500.0,0.00011226,2]
[344540952,1733538652984,-3793.97,0.00011226,2]
[344540953,1733538652993,-544.9,0.00011226,2]
[344540954,1733538653002,-1985.96,0.00011226,2]
[344540955,1733538653011,-500.0,0.00011226,2]
[344540956,1733538653020,-500.0,0.00011226,2]
[344540957,1733538653029,-500.0,0.00011226,2]
[344540958,1733538653038,-500.0,0.00011226,2]
[344540959,1733538653047,-500.0,0.00011226,2]
[344540960,1733538653056,-500.0,0.00011226,2]
[344540961,1733538653065,-260.07323399,0.00011226,2]
[344540962,1733538653075,-2261.0,0.00011226,2]
[344540963,1733538653084,-500.0,0.00011226,2]
[344540964,1733538653092,-1000.0,0.00011226,2]
[344540965,1733538653102,-500.0,0.00011226,2]
[344540966,1733538653111,-500.0,0.00011226,2]
[344540967,1733538653120,-500.0,0.00011226,2]
[344540968,1733538653129,-500.0,0.00011226,2]
[344540969,1733538653138,-806.39,0.00011226,2]
[344540970,1733538653147,-500.0,0.00011226,2]
[344540971,1733538653156,-500.0,0.00011226,2]
[344540972,1733538653165,-500.0,0.00011226,2]
[344540973,1733538653175,-500.0,0.00011226,2]
[344540974,1733538653184,-500.0,0.00011226,2]
[344540975,1733538653194,-500.0,0.00011226,2]
[344540976,1733538653210,-697.68,0.00011226,2]
[344540977,1733538653220,-811.16,0.00011226,2]
[344540978,1733538653230,-500.0,0.00011226,2]
[344540979,1733538653239,-856.38,0.00011226,2]
[344540980,1733538653249,-935.1,0.00011226,2]
[344540981,1733538653258,-624.77,0.00011226,2]
[344540982,1733538653268,-500.0,0.00011226,2]
[344540983,1733538653278,-1468.23,0.00011226,2]
[344540984,1733538653288,-500.0,0.00011226,2]
[344540985,1733538653298,-500.0,0.00011226,2]
[344540986,1733538653308,-4797.17,0.00011226,2]
[344540987,1733538653318,-500.0,0.00011226,2]
[344540988,1733538653327,-1275.33,0.00011226,2]
[344540989,1733538653337,-1057.06,0.00011226,2]
[344540990,1733538653347,-500.0,0.00011226,2]
[344540991,1733538653356,-507.12,0.00011226,2]
[344540992,1733538653366,-500.0,0.00011226,2]
[344540993,1733538653376,-500.0,0.00011226,2]
[344540994,1733538653386,-500.0,0.00011226,2]
[344540995,1733538653395,-2743.45,0.00011226,2]
[344540996,1733538653405,-500.0,0.00011226,2]
[344540997,1733538653414,-500.0,0.00011226,2]
[344540998,1733538653423,-500.0,0.00011226,2]
[344540999,1733538653433,-500.0,0.00011226,2]
[344541000,1733538653442,-676.45,0.00011226,2]
[344541001,1733538653455,-500.0,0.00011226,2]
[344541002,1733538653465,-640.66818112,0.00011226,2]
[344541003,1733538653475,-500.0,0.00011226,2]
[344541004,1733538653485,-1026.51,0.00011226,2]
[344541005,1733538653495,-500.0,0.00011226,2]
[344541006,1733538653504,-500.0,0.00011226,2]
[344541007,1733538653514,-620.57,0.00011226,2]
[344541008,1733538653523,-500.0,0.00011226,2]
[344541009,1733538653533,-1497.18,0.00011226,2]
[344541010,1733538653543,-500.0,0.00011226,2]
[344541011,1733538653553,-4753.16,0.00011226,2]
[344541012,1733538653562,-500.0,0.00011226,2]
[344541013,1733538653572,-607.28,0.00011226,2]
[344541014,1733538653582,-778.19,0.00011226,2]
[344541015,1733538653592,-500.0,0.00011226,2]
[344541016,1733538653602,-1146.06,0.00011227,2]
[344541017,1733538653611,-766.7,0.00011227,2]
[344541018,1733538653621,-500.0,0.00011227,2]
[344541019,1733538653631,-500.0,0.00011227,2]
[344541020,1733538653640,-500.0,0.00011227,2]
[344541021,1733538653650,-500.0,0.00011227,2]
[344541022,1733538653660,-567.01,0.00011227,2]
[344541023,1733538653670,-514.81,0.00011227,2]
[344541024,1733538653680,-500.0,0.00011227,2]
[344541025,1733538653690,-500.0,0.00011227,2]
[344541026,1733538653702,-657.0,0.00011227,2]
[344541027,1733538653716,-899.98,0.00011227,2]
[344541028,1733538653726,-500.0,0.00011227,2]
[344541029,1733538653736,-500.0,0.00011227,2]
[344541030,1733538653746,-790.04,0.00011227,2]
[344541031,1733538653757,-604.46,0.00011227,2]
[344541032,1733538653767,-618.41,0.00011227,2]
[344541033,1733538653777,-500.0,0.00011227,2]
[344541034,1733538653788,-500.0,0.00011227,2]
[344541035,1733538653798,-537.38,0.00011227,2]
[344541036,1733538653807,-500.0,0.00011227,2]
[344541037,1733538653817,-500.0,0.00011227,2]
[344541038,1733538653827,-485.28146154,0.00011227,2]
[344541039,1733538653837,-521.67,0.00011227,2]
[344541040,1733538653847,-607.77,0.00011227,2]
[344541041,1733538653857,-500.0,0.00011227,2]
[344541042,1733538653867,-500.0,0.00011227,2]
[344541043,1733538653878,-603.18,0.00011227,2]
[344541044,1733538653888,-500.0,0.00011227,2]
[344541045,1733538653898,-647.48,0.00011227,2]
[344541046,1733538653907,-607.67,0.00011227,2]
[344541047,1733538653917,-691.8,0.00011227,2]
[344541048,1733538653927,-500.0,0.00011227,2]
[344541049,1733538653937,-500.0,0.00011227,2]
[344541050,1733538653950,-197.872004,0.00011227,2]
[344541051,1733538653960,-500.0,0.00011227,2]
[344541052,1733538653970,-500.0,0.00011227,2]
[344541053,1733538653980,-500.0,0.00011227,2]
[344541054,1733538653990,-500.0,0.00011227,2]
[344541055,1733538654001,-728.64,0.00011227,2]
[344541056,1733538654010,-500.0,0.00011227,2]
[344541057,1733538654020,-500.0,0.00011227,2]
[344541058,1733538654030,-500.0,0.00011227,2]
[344541059,1733538654041,-640.13,0.00011227,2]
[344541060,1733538654051,-500.0,0.00011227,2]
[344541061,1733538654060,-500.0,0.00011227,2]
[344541062,1733538654071,-1243.41,0.00011227,2]
[344541063,1733538654081,-500.0,0.00011227,2]
[344541064,1733538654091,-500.0,0.00011227,2]
[344541065,1733538654101,-500.0,0.00011227,2]
[344541066,1733538654111,-500.0,0.00011227,2]
[344541067,1733538654120,-500.0,0.00011227,2]
[344541068,1733538654130,-500.0,0.00011227,2]
[344541069,1733538654140,-535.81,0.00011227,2]
[344541070,1733538654150,-729.39,0.00011227,2]
[344541071,1733538654160,-500.0,0.00011227,2]
[344541072,1733538654170,-500.0,0.00011227,2]
[344541073,1733538654180,-222.73665437,0.00011227,2]
[344541074,1733538654189,-993.22,0.00011227,2]
[344541075,1733538654202,-500.0,0.00011227,2]
[344541076,1733538654212,-559.72,0.00011227,2]
[344541077,1733538654222,-500.0,0.00011227,2]
[344541078,1733538654232,-500.0,0.00011227,2]
[344541079,1733538654242,-500.0,0.00011227,2]
[344541080,1733538654252,-500.0,0.00011227,2]
[344541081,1733538654262,-500.0,0.00011227,2]
[344541082,1733538654272,-500.0,0.00011227,2]
[344541083,1733538654282,-500.0,0.00011227,2]
[344541084,1733538654292,-500.0,0.00011227,2]
[344541085,1733538654302,-500.0,0.00011227,2]
[344541086,1733538654312,-500.0,0.00011227,2]
[344541087,1733538654322,-500.0,0.00011227,2]
[344541088,1733538654332,-617.62,0.00011227,2]
[344541089,1733538654342,-500.0,0.00011227,2]
[344541090,1733538654352,-500.0,0.00011227,2]
[344541091,1733538654362,-1318.28,0.00011227,2]
[344541092,1733538654372,-742.57,0.00011227,2]
[344541093,1733538654381,-500.0,0.00011227,2]
[344541094,1733538654391,-774.68,0.00011227,2]
[344541095,1733538654401,-500.0,0.00011227,2]
[344541096,1733538654411,-1979.9,0.00011227,2]
[344541097,1733538654421,-500.0,0.00011227,2]
[344541098,1733538654431,-500.0,0.00011227,2]
[344541099,1733538654440,-500.0,0.00011227,2]
[344541100,1733538654451,-500.0,0.00011227,2]
[344541101,1733538654461,-500.0,0.00011227,2]
[344541102,1733538654470,-846.08,0.00011227,2]
[344541103,1733538654480,-500.0,0.00011227,2]
[344541104,1733538654490,-500.0,0.00011227,2]
[344541105,1733538654500,-514.34,0.00011227,2]
[344541106,1733538654509,-500.0,0.00011227,2]
[344541107,1733538654519,-500.0,0.00011227,2]
[344541108,1733538654529,-500.0,0.00011227,2]
[344541109,1733538654539,-550.07,0.00011227,2]
[344541110,1733538654549,-522.22,0.00011227,2]
[344541111,1733538654558,-701.93,0.00011227,2]
[344541112,1733538654568,-500.0,0.00011227,2]
[344541113,1733538654578,-614.5,0.00011227,2]
[344541114,1733538654587,-500.0,0.00011227,2]
[344541115,1733538654597,-1144.35,0.00011227,2]
[344541116,1733538654607,-500.0,0.00011227,2]
[344541117,1733538654617,-500.0,0.00011227,2]
[344541118,1733538654629,-1041.71,0.00011227,2]
[344541119,1733538654639,-820.68,0.00011227,2]
[344541120,1733538654649,-631.36,0.00011227,2]
[344541121,1733538654658,-7329.42,0.00011227,2]
[344541122,1733538654668,-5670.47,0.00011227,2]
[344541123,1733538654678,-500.0,0.00011227,2]
[344541124,1733538654688,-500.0,0.00011227,2]
[344541125,1733538654701,-500.0,0.00011227,2]
[344541126,1733538654712,-729.16,0.00011227,2]
[344541127,1733538654723,-1820.83,0.00011227,2]
[344541128,1733538654733,-674.3,0.00011227,2]
[344541129,1733538654742,-1395.19,0.00011227,2]
[344541130,1733538654753,-500.0,0.00011227,2]
[344541131,1733538654762,-1929.61,0.00011227,2]
[344541132,1733538654772,-5538.23,0.00011227,2]
[344541133,1733538654782,-1023.74,0.00011227,2]
[344541134,1733538654792,-500.0,0.00011227,2]
[344541135,1733538654802,-567.73,0.00011227,2]
[344541136,1733538654812,-1242.16,0.00011227,2]
[344541137,1733538654823,-1210.15,0.00011227,2]
[344541138,1733538654833,-707.46,0.00011227,2]
[344541139,1733538654843,-500.0,0.00011227,2]
[344541140,1733538654854,-500.0,0.00011227,2]
[344541141,1733538654864,-887.11,0.00011227,2]
[344541142,1733538654874,-500.0,0.00011227,2]
[344541143,1733538654884,-889.28,0.00011227,2]
[344541144,1733538654894,-662.41,0.00011227,2]
[344541145,1733538654904,-500.0,0.00011227,2]
[344541146,1733538654913,-2834.98,0.00011227,2]
[344541147,1733538654923,-4185.18,0.00011227,2]
[344541148,1733538654933,-862.26,0.00011227,2]
[344541149,1733538654942,-788.23,0.00011227,2]
[344541150,1733538654955,-1314.55,0.00011227,2]
[344541151,1733538654964,-928.97,0.00011227,2]
[344541152,1733538654974,-828.3,0.00011227,2]
[344541153,1733538654984,-500.0,0.00011227,2]
[344541154,1733538654993,-576.01,0.00011227,2]
[344541155,1733538655003,-3211.95,0.00011227,2]
[344541156,1733538655013,-500.0,0.00011227,2]
[344541157,1733538655022,-500.0,0.00011227,2]
[344541158,1733538655032,-751.12,0.00011227,2]
[344541159,1733538655042,-500.0,0.00011227,2]
[344541160,1733538655052,-500.0,0.00011227,2]
[344541161,1733538655062,-500.0,0.00011227,2]
[344541162,1733538655072,-3036.57,0.00011227,2]
[344541163,1733538655082,-500.0,0.00011227,2]
[344541164,1733538655091,-500.0,0.00011227,2]
[344541165,1733538655102,-1462.66,0.00011227,2]
[344541166,1733538655112,-587.23,0.00011227,2]
[344541167,1733538655122,-500.0,0.00011227,2]
[344541168,1733538655131,-500.0,0.00011227,2]
[344541169,1733538655140,-500.0,0.00011227,2]
[344541170,1733538655150,-500.0,0.00011227,2]
[344541171,1733538655159,-571.76,0.00011227,2]
[344541172,1733538655169,-752.19,0.00011227,2]
[344541173,1733538655179,-500.0,0.00011227,2]
[344541174,1733538655189,-500.0,0.00011227,2]
[344541175,1733538655201,-500.0,0.00011227,2]
[344541176,1733538655211,-737.56,0.00011227,2]
[344541177,1733538655221,-500.0,0.00011227,2]
[344541178,1733538655230,-500.0,0.00011227,2]
[344541179,1733538655240,-2841.72,0.00011227,2]
[344541180,1733538655250,-6067.72,0.00011227,2]
[344541181,1733538655260,-500.0,0.00011227,2]
[344541182,1733538655269,-500.0,0.00011227,2]
[344541183,1733538655279,-500.0,0.00011227,2]
[344541184,1733538655288,-500.0,0.00011227,2]
[344541185,1733538655298,-1421.56,0.00011227,2]
[344541186,1733538655308,-500.0,0.00011227,2]
[344541187,1733538655318,-638.59,0.00011227,2]
[344541188,1733538655328,-5832.05,0.00011227,2]
[344541189,1733538655338,-500.0,0.00011227,2]
[344541190,1733538655347,-715.09,0.00011227,2]
[344541191,1733538655357,-4366.17,0.00011227,2]
[344541192,1733538655368,-939.44,0.00011227,2]
[344541193,1733538655378,-1045.16,0.00011227,2]
[344541194,1733538655387,-617.55,0.00011227,2]
[344541195,1733538655397,-500.0,0.00011227,2]
[344541196,1733538655666,-500.0,0.00011227,2]
[344541197,1733538655691,-1873.96,0.00011227,2]
[344541198,1733538655703,-500.0,0.00011227,2]
[344541199,1733538655716,-792.25,0.00011227,2]
[344541200,1733538655726,-500.0,0.00011227,2]
[344541201,1733538655736,-817.0,0.00011227,2]
[344541202,1733538655745,-612.93,0.00011227,2]
[344541203,1733538655757,-500.0,0.00011228,2]
[344541204,1733538655766,-500.0,0.00011228,2]
[344541205,1733538655775,-500.0,0.00011228,2]
[344541206,1733538655785,-500.0,0.00011228,2]
[344541207,1733538655796,-500.0,0.00011228,2]
[344541208,1733538655805,-431.04678905,0.00011228,2]
[344541209,1733538655814,-500.0,0.00011228,2]
[344541210,1733538655824,-500.0,0.00011228,2]
[344541211,1733538655833,-500.0,0.00011228,2]
[344541212,1733538655843,-558.99,0.00011228,2]
[344541213,1733538655853,-500.0,0.00011228,2]
[344541214,1733538655862,-641.29,0.00011228,2]
[344541215,1733538655871,-771.41,0.00011228,2]
[344541216,1733538655880,-500.0,0.00011228,2]
[344541217,1733538655890,-520.7,0.00011228,2]
[344541218,1733538655899,-872.9,0.00011228,2]
[344541219,1733538655908,-500.0,0.00011228,2]
[344541220,1733538655917,-500.0,0.00011228,2]
[344541221,1733538655927,-500.0,0.00011228,2]
[344541222,1733538655936,-674.13,0.00011228,2]
[344541223,1733538655945,-662.04,0.00011228,2]
[344541224,1733538655957,-573.99,0.00011228,2]
[344541225,1733538655966,-500.0,0.00011228,2]
[344541226,1733538655976,-500.0,0.00011228,2]
[344541227,1733538655986,-500.0,0.00011228,2]
[344541228,1733538655995,-500.0,0.00011228,2]
[344541229,1733538656004,-500.0,0.00011228,2]
[344541230,1733538656014,-500.0,0.00011228,2]
[344541231,1733538656023,-669.46,0.00011228,2]
[344541232,1733538656032,-569.89,0.00011228,2]
[344541233,1733538656041,-500.0,0.00011228,2]
[344541234,1733538656051,-500.0,0.00011228,2]
[344541235,1733538656060,-500.0,0.00011228,2]
[344541236,1733538656070,-500.0,0.00011228,2]
[344541237,1733538656079,-500.0,0.00011228,2]
[344541238,1733538656089,-608.53,0.00011228,2]
[344541239,1733538656098,-500.0,0.00011228,2]
[344541240,1733538656107,-500.0,0.00011228,2]
[344541241,1733538656117,-500.0,0.00011228,2]
[344541242,1733538656126,-500.0,0.00011228,2]
[344541243,1733538656136,-500.0,0.00011228,2]
[344541244,1733538656145,-500.0,0.00011228,2]
[344541245,1733538656155,-500.0,0.00011228,2]
[344541246,1733538656164,-500.0,0.00011228,2]
[344541247,1733538656173,-500.0,0.00011228,2]
[344541248,1733538656183,-500.0,0.00011228,2]
[344541249,1733538656192,-500.0,0.00011228,2]
[344541250,1733538656203,-500.0,0.00011228,2]
[344541251,1733538656213,-500.0,0.00011228,2]
[344541252,1733538656223,-518.65,0.00011228,2]
[344541253,1733538656233,-500.0,0.00011228,2]
[344541254,1733538656243,-500.0,0.00011228,2]
[344541255,1733538656252,-21534.03977221,0.00011281,2]
[344541256,1733538656766,-5801.92022779,0.00011281,2]
[344541257,1733538656776,-6134.32,0.00011281,2]
[344541258,1733538656786,-604.42,0.00011281,2]
[344541259,1733538656795,-150.0,0.00011412,2]
[344541260,1733538656804,-150.0,0.00011427,2]
[344541261,1733538656814,-150.0,0.00011431,2]
[344541262,1733538656823,-339.4,0.00011447,2]
[344541263,1733538656832,-200.0,0.00011453,2]
[344541264,1733538656841,-315.93,0.00011462,2]
[344541265,1733538656850,-150.0,0.00011492,2]
[344541266,1733538656859,-25948.11328556,0.00011492,2]
[344541267,1733538656869,-920.34,0.000115,2]
[344541268,1733538656879,-500.0,0.000115,2]
[344541269,1733538656889,-500.0,0.000115,2]
[344541270,1733538656898,-500.0,0.000115,2]
[344541271,1733538656908,-500.0,0.000115,2]
[344541272,1733538656918,-500.0,0.000115,2]
[344541273,1733538656928,-500.0,0.000115,2]
[344541274,1733538656938,-500.0,0.000115,2]
[344541275,1733538656947,-500.0,0.000115,2]
[344541276,1733538656958,-500.0,0.000115,2]
[344541277,1733538656968,-500.0,0.000115,2]
[344541278,1733538656977,-500.0,0.000115,2]
[344541279,1733538656986,-500.0,0.000115,2]
[344541280,1733538656995,-500.0,0.000115,2]
[344541281,1733538657004,-500.0,0.000115,2]
[344541282,1733538657014,-535.83,0.000115,2]
[344541283,1733538657023,-500.0,0.000115,2]
[344541284,1733538657033,-500.0,0.000115,2]
[344541285,1733538657042,-500.0,0.000115,2]
[344541286,1733538657052,-500.0,0.000115,2]
[344541287,1733538657061,-500.0,0.000115,2]
[344541288,1733538657071,-500.0,0.000115,2]
[344541289,1733538657081,-500.0,0.000115,2]
[344541290,1733538657091,-500.0,0.000115,2]
[344541291,1733538657100,-500.0,0.000115,2]
[344541292,1733538657110,-500.0,0.000115,2]
[344541293,1733538657119,-500.0,0.000115,2]
[344541294,1733538657128,-500.0,0.000115,2]
[344541295,1733538657138,-500.0,0.000115,2]
[344541296,1733538657147,-698.17,0.000115,2]
[344541297,1733538657157,-500.0,0.000115,2]
[344541298,1733538657166,-500.0,0.000115,2]
[344541299,1733538657176,-500.0,0.000115,2]
[344541300,1733538657186,-500.0,0.000115,2]
[344541301,1733538657195,-500.0,0.000115,2]
[344541302,1733538657205,-500.0,0.000115,2]
[344541303,1733538657215,-500.0,0.000115,2]
[344541304,1733538657225,-1200.0,0.000115,2]
[344541305,1733538657235,-500.0,0.000115,2]
[344541306,1733538657244,-500.0,0.000115,2]
[344541307,1733538657254,-500.0,0.000115,2]
[344541308,1733538657263,-500.0,0.000115,2]
[344541309,1733538657273,-500.0,0.000115,2]
[344541310,1733538657283,-500.0,0.000115,2]
[344541311,1733538657293,-500.0,0.000115,2]
[344541312,1733538657303,-500.0,0.000115,2]